[Event "3rd VIZAG GM-Open 2022"]
[Site "Visakapatnam"]
[Date "2022.06.17"]
[Round "10.2"]
[White "Harsha Bharathakoti"]
[Black "Paichadze, Luka"]
[Result "1/2-1/2"]
[ECO "A50"]
[WhiteElo "2547"]
[BlackElo "2567"]
[Annotator "TA"]
[PlyCount "86"]
[EventDate "2022.06.13"]
[EventType "swiss"]
[EventCountry "IND"]
[SourceTitle "playchess.com"]
[Source "ChessBase"]
[SourceQuality "1"]
[TimeControl "5400+30"]

{[%evp 9,86,3,18,4,19,20,26,6,14,0,0,0,0,0,29,-16,-13,-13,-11,-14,-18,-20,-19,-20,-19,-23,-16,-20,-12,-1,0,0,0,-9,-10,-5,-5,-7,0,0,-8,-20,0,-12,0,-12,-12,-12,-11,-9,0,-37,-29,-37,-23,-23,-23,-23,-19,-19,0,-12,-12,-12,-12,-12,-12,-16,0,0,0,0,0,0,0,0,-6,-6,0]} 1. d4 {[%emt 0:00:05]} Nf6 {[%emt 0:00:05]} 2. c4 {[%emt 0:00:13]} e6 {[%emt 0:00:05]} 3. Bf4 {[%emt 0:00:08]} Bb4+ {[%emt 0:01:32]} 4. Nd2 {[%emt 0:00:08] [#]} d6 $146 {[%emt 0:01:49]} ({Predecessor:} 4... Nc6 5. a3 Bxd2+ 6. Qxd2 d6 7. O-O-O Qe7 8. e3 e5 9. Bg5 h6 10. Bh4 g5 11. Bg3 {½-½ (43) Duda,J (2760)-Esipenko,A (2714) Wijk aan Zee 2022}) 5. a3 {[%emt 0:00:47]} Bxd2+ {[%emt 0:00:07]} 6. Qxd2 {[%emt 0:00:03] A50: Queen's Fianchetto Defence (1 d4 Nf6 2 c4 b6).} Nbd7 {[%emt 0:00:11][%cal Bb8d7,Bd7f6,Bf6e4][%mdl 32]} 7. e3 $1 {[%emt 0:12:34]} Qe7 {[%emt 0:03:36]} 8. Bg3 {[%emt 0:00:49] White has an edge.} b6 {[%emt 0:06:33]} 9. Ne2 {[%emt 0:04:59]} Ne4 {[%emt 0:01:02]} 10. Qc2 {[%emt 0:01:40]} Bb7 {[%emt 0:00:16]} 11. Nc3 {[%emt 0:01:24]} Ndf6 {[%emt 0:06:08]} 12. O-O-O {[%emt 0:17:23]} Nxc3 {[%emt 0:00:58]} 13. Qxc3 {[%emt 0:00:04]} Ne4 {[%emt 0:00:21]} 14. Qc2 {[%emt 0:02:19]} O-O-O {[%emt 0:01:38]} 15. f3 {[%emt 0:06:34]} Nxg3 {[%emt 0:00:09]} 16. hxg3 {[%emt 0:00:02]} h5 {[%emt 0:05:47]} 17. Bd3 {[%emt 0:01:55]} Kb8 {[%emt 0:00:56]} 18. Kb1 {[%emt 0:02:44]} g6 {[%emt 0:01:13]} 19. e4 {[%emt 0:05:47]} h4 {[%emt 0:12:02]} 20. gxh4 {[%emt 0:08:03]} Rxh4 {[%emt 0:00:07]} 21. g3 {[%emt 0:00:05]} Rxh1 {[%emt 0:05:46]} 22. Rxh1 {[%emt 0:00:05]} Qf6 {[%emt 0:02:07][%csl LRd4,LRf3]} 23. Qf2 {[%emt 0:00:16]} Rh8 {[%emt 0:02:22]} 24. Rxh8+ {[%emt 0:00:34]} Qxh8 $11 {[%emt 0:00:02][%mdl 4096] Endgame KQB-KQB} 25. d5 {[%emt 0:10:33]} e5 {[%emt 0:01:39]} (25... Qh1+ {is interesting.} 26. Kc2 Bc8 27. g4 Bd7) 26. Qg1 {[%emt 0:08:06]} Bc8 {[%emt 0:00:28]} 27. Kc2 {[%emt 0:00:39]} Qh5 {[%emt 0:01:30]} 28. Qg2 {[%emt 0:00:35]} Qh6 {[%emt 0:00:37]} 29. Qg1 {[%emt 0:00:18]} f5 {[%emt 0:00:54]} (29... Bd7 {looks sharper.} 30. b4 Ba4+ 31. Kc3 c5) 30. Kd1 {[%emt 0:06:02]} Qh3 {[%emt 0:01:24] ...f4 is the strong threat.} 31. Ke2 {[%emt 0:02:15]} g5 {[%emt 0:00:45] [#] Strongly threatening ...g4.} 32. Kf2 {[%emt 0:02:31]} Qh7 {[%emt 0:06:53][%cal Ob6b5]} (32... f4 {keeps more tension.} 33. Qg2 Qh7 34. g4 Qh4+) 33. Qg2 {[%emt 0:00:02]} Kb7 {[%emt 0:09:11]} 34. Kg1 {[%emt 0:01:31] The position is equal.} fxe4 {[%emt 0:01:19]} 35. fxe4 {[%emt 0:01:19]} Qh5 {[%emt 0:00:37]} 36. Qe2 {[%emt 0:00:39]} Bg4 {[%emt 0:00:16]} 37. Qh2 {[%emt 0:00:34]} Qe8 {[%emt 0:10:11]} 38. Be2 {[%emt 0:00:54]} Qd7 {[%emt 0:01:19]} 39. b3 {[%emt 0:01:15]} Bxe2 {[%emt 0:00:38]} 40. Qxe2 {[%emt 0:00:02]} Qh3 {[%emt 0:00:11]} 41. Qf3 {[%emt 0:00:06]} g4 {[%emt 0:00:44]} 42. Qe3 {[%emt 0:00:23]} a5 {[%emt 0:00:17][%cal Ba7a5,Ba5b4][%mdl 32]} 43. b4 {[%emt 0:02:08]} axb4 {[%emt 0:00:28] Weighted Error Value: White=0.05 (flawless) /Black=0.05 (flawless)} 1/2-1/2

[Event "3rd VIZAG GM-Open 2022"]
[Site "Visakapatnam"]
[Date "2022.06.17"]
[Round "10.4"]
[White "Nigmatov, Ortik"]
[Black "Audi Ameya"]
[Result "1/2-1/2"]
[ECO "A48"]
[WhiteElo "2463"]
[BlackElo "2389"]
[Annotator "TA"]
[PlyCount "138"]
[EventDate "2022.06.13"]
[EventType "swiss"]
[EventCountry "IND"]
[SourceTitle "playchess.com"]
[Source "ChessBase"]
[SourceQuality "1"]
[TimeControl "5400+30"]

{[%evp 13,138,-6,0,-29,-16,-7,0,-27,-45,-53,-12,-28,-9,-10,-7,-4,0,-21,0,-30,0,-31,-24,-22,0,0,0,-36,-22,-20,0,-15,5,0,13,13,34,-8,-20,-78,-76,-127,-103,-120,-154,-165,-175,-144,0,0,0,-160,-170,-132,-8,-26,0,0,0,0,0,0,0,0,0,0,0,0,0,0,0,0,0,0,0,-8,0,0,0,0,0,0,0,0,0,0,0,0,0,0,0,0,0,0,0,0,0,0,0,0,1,1,1,1,0,0,0,0,0,0,0,0,0,0,0,0,0,0,0,0,0,0,0,0,0,0,0]} 1. Nf3 {[%emt 0:00:05]} Nf6 {[%emt 0:00:05]} 2. e3 {[%emt 0:00:06]} g6 {[%emt 0:04:12]} 3. b3 {[%emt 0:00:06]} Bg7 {[%emt 0:01:03]} 4. Bb2 {[%emt 0:00:06]} c5 {[%emt 0:00:12]} 5. d4 {[%emt 0:07:46]} cxd4 {[%emt 0:00:10]} 6. exd4 {[%emt 0:00:24]} O-O {[%emt 0:00:49]} 7. Nbd2 {[%emt 0:02:56]} d5 {[%emt 0:00:15]} 8. g3 {[%emt 0:06:53] [#] A48: 1 d4 Nf6 2 Nf3 g6: Torre, London and Colle Systems.} Bf5 $146 {[%emt 0:27:34]} (8... Ne4 {looks sharper.} 9. c3 Nc6 10. Bg2 Bg4) ({Predecessor:} 8... Nc6 9. Bg2 Bf5 10. a3 Rc8 11. O-O Ne4 12. c4 Nxd2 13. Nxd2 dxc4 14. Nxc4 Nxd4 15. Bxb7 Rb8 {½-½ (56) Szalai,K (2234)-Veres,J (2142) Heves 2001}) 9. Bg2 {[%emt 0:00:45]} Qc8 {[%emt 0:06:56]} 10. Rc1 {[%emt 0:10:11]} Nc6 {[%emt 0:00:30]} 11. a3 {[%emt 0:06:46] Prevents Nb4.} Bh3 {[%emt 0:01:14]} 12. O-O {[%emt 0:00:26]} Qf5 {[%emt 0:03:05]} 13. Re1 {[%emt 0:00:32]} Bxg2 {[%emt 0:00:05]} 14. Kxg2 {[%emt 0:00:02]} Bh6 {[%emt 0:10:07]} 15. Rb1 {[%emt 0:07:35]} Rac8 {[%emt 0:01:48]} 16. h3 {[%emt 0:00:42]} Rfd8 {[%emt 0:08:18]} 17. Nh4 {[%emt 0:08:36]} Qd7 {[%emt 0:01:05]} 18. Nhf3 {[%emt 0:05:40]} Qf5 {[%emt 0:00:13]} 19. Nh4 {[%emt 0:06:11]} Qd7 {[%emt 0:00:04]} 20. Qe2 {[%emt 0:01:49]} Qc7 {[%emt 0:08:08]} 21. Nhf3 {[%emt 0:03:18]} e6 {[%emt 0:01:59]} 22. c4 {[%emt 0:04:17]} Bxd2 {[%emt 0:08:21]} 23. Qxd2 {[%emt 0:00:13]} Ne4 {[%emt 0:02:24]} 24. Qh6 {[%emt 0:00:55][%cal Oe1e4] Black must now prevent Rxe4!} Ne7 {[%emt 0:01:45]} 25. g4 {[%emt 0:01:12][%cal Oe1e4] Inhibits Nf5.} f6 {[%emt 0:01:54]} 26. Re2 {[%emt 0:04:30] [#]} (26. Rbc1 $11 {keeps the balance.} Qd6 27. Nd2) 26... g5 $1 $17 {[%emt 0:02:30] Threatens to win with ...Ng6.} 27. Rbe1 {[%emt 0:09:32]} (27. Rc1 $142) 27... Ng6 {[%emt 0:00:20]} 28. Bc1 {[%emt 0:00:04]} Rd7 {[%emt 0:01:51][%cal Bd8d7,Bd7g7,Bg7g6][%mdl 32]} 29. Kg1 {[%emt 0:05:53] [#]} Rg7 $1 {[%emt 0:01:05]} 30. Kg2 {[%emt 0:07:13]} Nf4+ {[%emt 0:01:57]} (30... a5 $17 31. c5 Rf7) 31. Bxf4 $11 {[%emt 0:00:05]} Qxf4 {[%emt 0:00:02]} 32. Nh2 $2 {[%emt 0:01:06]} (32. cxd5 $11 Rc3 33. Nd2 Nxd2 34. Rxe6) 32... Rg6 $17 {[%emt 0:00:15]} 33. Qh5 {[%emt 0:00:01]} Kg7 {[%emt 0:00:10]} ({Better is} 33... Rf8 $17 {Hoping for ...f5.} 34. cxd5 f5 35. gxf5 exf5) 34. cxd5 $11 {[%emt 0:00:52]} exd5 {[%emt 0:00:23]} 35. Nf1 $1 {[%emt 0:00:01] The position is equal.} Rc3 {[%emt 0:01:55] Against Ng3} 36. Nd2 {[%emt 0:00:55][%cal Rd2e4] Against Rf3} Rc2 {[%emt 0:03:09]} (36... Nxd2 $2 37. Re7+ Kg8 38. Qxh7+ Kf8 39. Qf7#) 37. Nxe4 {[%emt 0:00:27]} Rxe2 {[%emt 0:00:03]} 38. Rxe2 {[%emt 0:00:04] Really sharp!} dxe4 {[%emt 0:00:01][%mdl 4096] Endgame KQR-KQR} 39. Re3 {[%emt 0:00:12] Against Qf3+} b6 {[%emt 0:01:16]} 40. b4 {[%emt 0:00:13]} b5 {[%emt 0:00:59]} 41. Kg1 {[%emt 0:00:11]} a6 {[%emt 0:01:18]} 42. Kg2 {[%emt 0:00:13]} Kh8 {[%emt 0:00:20]} 43. Kg1 {[%emt 0:00:52]} Kg8 {[%emt 0:00:26]} 44. Rc3 {[%emt 0:00:55]} Qd6 {[%emt 0:00:33]} 45. h4 $1 {[%emt 0:00:18]} ({Don't play} 45. Rc8+ Kg7 46. d5 e3 47. fxe3 Qg3+ 48. Kf1 Qf3+ 49. Kg1 Qxe3+ 50. Kg2 (50. Kh1 Qe5 $17) 50... Qe2+ 51. Kg1 Qe3+ 52. Kf1 (52. Kh1 $2 Qe5 $19) 52... Qf4+ 53. Ke1 Qd6 $17) 45... Qd7 {[%emt 0:00:47]} 46. Kf1 {[%emt 0:00:48]} gxh4 {[%emt 0:01:17]} 47. Qxh4 {[%emt 0:01:08]} Qxg4 {[%emt 0:00:20]} 48. Qxg4 {[%emt 0:00:07]} Rxg4 {[%emt 0:00:03] KR-KR} 49. Rc6 {[%emt 0:00:03][%csl LRa6,LRf6]} Rf4 {[%emt 0:00:42]} 50. Rxa6 {[%emt 0:00:04]} e3 {[%emt 0:00:06]} 51. f3 {[%emt 0:00:39]} Rxd4 {[%emt 0:00:44]} 52. Ke2 {[%emt 0:00:11]} Kf7 {[%emt 0:00:07]} 53. Kxe3 {[%emt 0:00:02]} Rc4 {[%emt 0:00:06]} 54. Kd3 {[%emt 0:00:33]} Rf4 {[%emt 0:00:05]} 55. Ke3 {[%emt 0:00:48]} Rc4 {[%emt 0:00:39]} 56. Ra5 {[%emt 0:00:06]} Ke6 {[%emt 0:00:26]} 57. Rxb5 {[%emt 0:01:43] a4 is the strong threat.} Rc3+ {[%emt 0:00:03]} 58. Ke4 {[%emt 0:00:13] And now a4 would win.} Rxa3 {[%emt 0:00:02]} 59. Rb6+ {[%emt 0:00:05]} Kf7 $1 {[%emt 0:00:52]} 60. b5 {[%emt 0:00:09]} Rb3 {[%emt 0:00:28]} 61. Rb8 {[%emt 0:00:23]} h5 {[%emt 0:00:35]} 62. b6 {[%emt 0:01:53]} h4 {[%emt 0:00:15]} 63. b7 {[%emt 0:00:06] Rh8 would kill now.} Kg7 {[%emt 0:00:04] Against Rh8} 64. Kf4 {[%emt 0:00:36]} Rb4+ {[%emt 0:00:23]} 65. Ke3 {[%emt 0:00:04]} h3 {[%emt 0:00:28] ( -> ...h2)} 66. Kf2 {[%emt 0:00:10]} Rb2+ {[%emt 0:00:03]} (66... h2 $5 67. Kg2 Rb2+ 68. Kh1 f5 $11) 67. Kg1 {[%emt 0:00:05]} Rg2+ {[%emt 0:00:44]} 68. Kh1 {[%emt 0:00:05] White wants to mate with Ra8.} Rb2 {[%emt 0:00:02]} 69. Kg1 {[%emt 0:00:10]} Rg2+ {[%emt 0:00:04] Weighted Error Value: White=0.13 (very precise) /Black=0.13 (very precise)} 1/2-1/2

[Event "3rd VIZAG GM-Open 2022"]
[Site "Visakapatnam"]
[Date "2022.06.17"]
[Round "10.5"]
[White "Abdurakhmonov, Mukhammadali"]
[Black "Nitin, S.."]
[Result "0-1"]
[ECO "E68"]
[WhiteElo "2308"]
[BlackElo "2399"]
[Annotator "RC"]
[PlyCount "92"]
[EventDate "2022.06.13"]
[EventType "swiss"]
[EventCountry "IND"]
[SourceTitle "playchess.com"]
[Source "ChessBase"]
[SourceQuality "1"]
[TimeControl "5400+30"]

1. d4 {[%emt 0:00:29]} Nf6 {[%emt 0:00:34]} 2. Nf3 {[%emt 0:01:26]} g6 {[%emt 0:00:38]} 3. c4 {[%emt 0:00:06]} Bg7 {[%emt 0:00:14]} 4. g3 {[%emt 0:00:05]} O-O {[%emt 0:02:38]} 5. Bg2 {[%emt 0:00:04]} d6 {[%emt 0:02:54]} 6. O-O {[%emt 0:00:09]} Nbd7 {[%emt 0:00:11]} 7. Nc3 {[%emt 0:00:10]} e5 {[%emt 0:00:04]} 8. e4 {[%emt 0:00:48]} exd4 {[%emt 0:02:04]} 9. Nxd4 {[%emt 0:00:08]} Re8 {[%emt 0:00:20]} 10. h3 {[%emt 0:02:45]} Nc5 {[%emt 0:03:19]} 11. Re1 {[%emt 0:00:44]} Bd7 {[%emt 0:00:12]} 12. b3 {[%emt 0:14:14]} a5 {[%emt 0:03:04]} 13. Rb1 {[%emt 0:00:59]} h6 {[%emt 0:06:48]} 14. Bb2 {[%emt 0:04:20]} h5 {[%emt 0:01:08]} 15. Qd2 {[%emt 0:06:52]} Nh7 {[%emt 0:06:03]} 16. Rbd1 {[%emt 0:09:03]} Ng5 {[%emt 1:08:19]} 17. h4 {[%emt 0:03:29]} Nh7 {[%emt 0:00:00]} 18. Ndb5 {[%emt 0:06:20]} Nf6 {[%emt 0:01:00]} 19. Ba3 {[%emt 0:02:33]} Ne6 {[%emt 0:00:00]} 20. f4 {[%emt 0:08:52]} Ng4 {[%emt 0:00:00]} 21. e5 {[%emt 0:11:03]} Bxb5 {[%emt 0:00:00]} 22. Nxb5 {[%emt 0:00:09]} dxe5 {[%emt 0:00:00]} 23. Bxb7 {[%emt 0:01:05]} Qb8 {[%emt 0:00:00]} 24. Qg2 {[%emt 0:08:10]} Ra7 {[%emt 0:00:00]} 25. Bc6 {[%emt 0:00:19]} Rd8 {[%emt 0:00:00]} 26. Rxd8+ {[%emt 0:04:32]} Qxd8 {[%emt 0:00:00]} 27. Qd5 {[%emt 0:00:34]} Ra6 {[%emt 0:00:00]} 28. Qxd8+ {[%emt 0:01:09]} Nxd8 {[%emt 0:00:00]} 29. Bf3 {[%emt 0:00:15]} Ne6 {[%emt 0:00:00]} 30. fxe5 {[%emt 0:06:04]} Nxe5 {[%emt 0:00:00]} 31. Bb7 {[%emt 0:00:14]} Rb6 {[%emt 0:00:00]} 32. Bg2 {[%emt 0:00:06]} Nd3 {[%emt 0:00:13]} 33. Rd1 {[%emt 0:00:38]} Nb4 {[%emt 0:00:03]} 34. Bc1 {[%emt 0:06:19]} Be5 {[%emt 0:01:00]} 35. Kf2 {[%emt 0:02:05]} Nxa2 {[%emt 0:02:06]} 36. Be3 {[%emt 0:00:07]} c5 {[%emt 0:01:09]} 37. Rd5 {[%emt 0:02:35]} Nb4 {[%emt 0:00:12]} 38. Rd7 {[%emt 0:00:00]} Nc2 {[%emt 0:00:27]} 39. Bd2 {[%emt 0:00:00]} Ned4 {[%emt 0:00:46]} 40. Bd5 {[%emt 0:00:02]} Rf6+ {[%emt 0:00:26]} 41. Kg2 {[%emt 0:00:11]} Nf5 {[%emt 0:01:53]} 42. Bg5 {[%emt 0:01:23]} Nfe3+ {[%emt 0:00:10]} 43. Kh3 {[%emt 0:00:06]} Rf2 {[%emt 0:00:49]} 44. Bxe3 {[%emt 0:00:56]} Nxe3 {[%emt 0:00:02]} 45. Re7 {[%emt 0:00:07]} Ng4 {[%emt 0:00:30]} 46. Bg2 {[%emt 0:00:01]} Rb2 {[%emt 0:00:29]} 0-1

[Event "3rd VIZAG GM-Open 2022"]
[Site "Visakapatnam"]
[Date "2022.06.17"]
[Round "10.6"]
[White "Fedorov, Alexei"]
[Black "Gusain, Himal"]
[Result "1/2-1/2"]
[ECO "C24"]
[WhiteElo "2529"]
[BlackElo "2396"]
[Annotator "TA"]
[PlyCount "134"]
[EventDate "2022.06.13"]
[EventType "swiss"]
[EventCountry "IND"]
[SourceTitle "playchess.com"]
[Source "ChessBase"]
[SourceQuality "1"]
[TimeControl "5400+30"]

{[%evp 12,134,23,4,12,14,30,29,46,45,47,50,58,63,74,37,46,41,47,37,43,47,40,32,41,30,30,33,30,29,33,25,25,0,18,27,34,29,23,15,55,55,54,55,45,16,23,15,20,0,0,0,0,0,19,0,0,0,0,0,0,0,0,0,0,0,0,-28,-19,-50,-82,-70,-55,-77,-8,-8,-8,-8,-8,-8,-8,-8,-8,-8,-8,-8,-8,-8,-8,-8,-8,-8,-8,-15,-8,-8,-8,-8,0,0,0,0,0,0,0,0,0,0,0,0,0,0,0,0,0,0,0,0,0,0,0,0,0,0,0]} 1. e4 {[%emt 0:00:03]} e5 {[%emt 0:09:07]} 2. Bc4 {[%emt 0:00:37]} Nf6 {[%emt 0:01:07]} 3. d3 {[%emt 0:00:08]} c6 {[%emt 0:00:29]} 4. Nf3 {[%emt 0:00:06]} d5 {[%emt 0:00:17]} 5. Bb3 {[%emt 0:00:04]} Bb4+ {[%emt 0:03:27]} 6. Bd2 {[%emt 0:07:09]} Bxd2+ {[%emt 0:00:37]} 7. Nbxd2 {[%emt 0:00:03]} Qc7 {[%emt 0:05:11] C24: Bishop's Opening: 2...Nf6.} 8. O-O {[%emt 0:00:43]} O-O {[%emt 0:01:14]} 9. Re1 {[%emt 0:00:24] [#]} d4 $146 {[%emt 0:04:26] White has an edge.} ({Predecessor:} 9... a5 10. a4 Re8 11. d4 exd4 12. exd5 Rxe1+ 13. Qxe1 cxd5 14. Bxd5 Bd7 15. Bb3 Nc6 {0-1 (39) Antipov,M (2594)-Kuzubov,Y (2644) Skopje 2019}) 10. c3 {[%emt 0:06:16]} c5 {[%emt 0:00:09]} 11. cxd4 {[%emt 0:06:30]} cxd4 {[%emt 0:00:08]} 12. Rc1 {[%emt 0:00:05]} Qe7 {[%emt 0:02:19]} 13. Nc4 {[%emt 0:05:15]} (13. Nxd4 {keeps more tension.} exd4 14. e5 Nc6 15. exf6 Qxf6 16. Ne4) 13... Nc6 {[%emt 1:08:29]} 14. Ba4 {[%emt 0:02:27]} Bg4 {[%emt 0:00:00]} 15. Bxc6 {[%emt 0:03:45] [#] Black must now prevent Ba4.} Bxf3 {[%emt 0:00:00]} 16. Qxf3 {[%emt 0:00:05] Strongly threatening Ba4.} (16. gxf3 bxc6 17. f4 exf4 $15) 16... bxc6 {[%emt 0:00:00]} 17. Qf5 {[%emt 0:06:21]} Nd7 {[%emt 0:00:00]} 18. Na5 {[%emt 0:08:38]} c5 {[%emt 0:00:00]} 19. Rc2 {[%emt 0:00:42]} g6 {[%emt 0:00:00]} 20. Qh3 {[%emt 0:03:02]} Rfc8 {[%emt 0:00:00]} 21. Rec1 {[%emt 0:01:00]} Rab8 {[%emt 0:00:00]} 22. a3 {[%emt 0:02:34]} Qe8 {[%emt 0:00:00]} 23. g3 {[%emt 0:00:55][%cal Bg2g3,Bg3f4,Bf4f5][%mdl 32]} Kg7 {[%emt 0:00:00]} 24. f4 {[%emt 0:03:07]} exf4 {[%emt 0:00:00]} 25. gxf4 {[%emt 0:00:34]} Nb6 {[%emt 0:00:00]} 26. f5 {[%emt 0:05:51]} Nd7 {[%emt 0:00:00]} 27. Nc4 {[%emt 0:01:16]} Rc6 {[%emt 0:00:00] Inhibits Nd6.} 28. e5 {[%emt 0:04:44]} Nxe5 {[%emt 0:00:00]} 29. Re2 {[%emt 0:00:18]} f6 {[%emt 0:00:00]} 30. Rce1 {[%emt 0:02:22][%cal Rc4e5]} Rb7 {[%emt 0:00:00]} 31. Nxe5 {[%emt 0:09:07]} fxe5 {[%emt 0:00:00]} 32. Rxe5 {[%emt 0:00:08]} Qf7 {[%emt 0:00:00]} 33. Kh1 {[%emt 0:04:34]} Rf6 {[%emt 0:00:00][%cal Rf6f5]} 34. fxg6 {[%emt 0:05:06]} hxg6 {[%emt 0:00:00] And now ...Rf3 would win.} 35. Kg1 {[%emt 0:02:56]} ({Don't play} 35. Rxc5 Rf3 36. Qg4 (36. Qg2 Rxb2 37. Rc7 Rxg2 $17) 36... Rf1+ 37. Rxf1 Qxf1+ 38. Qg1 Qxd3 $17) 35... Rf5 {[%emt 0:00:00]} 36. Re8 {[%emt 0:04:07][%csl Ge8][%cal Rh3h8] [#]} Rg5+ {[%emt 0:00:00]} 37. Kh1 {[%emt 0:00:18][%csl Ge8][%cal Rh3h8]} Qd5+ {[%emt 0:00:00]} 38. R1e4 {[%emt 0:00:23] Intending Qh8+ and mate.} Rh5 {[%emt 0:00:00] Inhibits Qh8+.} 39. Qf3 {[%emt 0:02:20] Threatening mate with Qf8+.} Rf7 {[%emt 0:00:00] Against Qf8+} 40. R8e7 {[%emt 0:01:02]} Rhf5 {[%emt 0:00:00]} 41. Rxf7+ {[%emt 0:01:20]} Qxf7 $17 {[%emt 0:00:00][%mdl 4096] Endgame KQR-KQR} 42. Qg3 {[%emt 0:00:24]} Rf3 {[%emt 0:00:00]} (42... a5 $17) 43. Qe5+ $11 {[%emt 0:01:18] The position is equal.} Qf6 {[%emt 0:00:00]} 44. b4 $1 {[%emt 0:02:01]} cxb4 {[%emt 0:00:00]} ({Much worse is} 44... Qxe5 $6 45. Rxe5 cxb4 46. Kg2 Rxd3 47. axb4 $17) 45. axb4 {[%emt 0:01:32]} Qxe5 {[%emt 0:00:00]} 46. Rxe5 {[%emt 0:00:03]} Rxd3 {[%emt 0:00:00] Black wants to play ...Kf6. KR-KR} 47. Kg2 {[%emt 0:00:25]} Kf6 {[%emt 0:00:00]} 48. Ra5 {[%emt 0:00:20]} Rb3 {[%emt 0:00:00]} 49. Rxa7 {[%emt 0:00:31]} Ke5 {[%emt 0:00:00]} 50. Rb7 {[%emt 0:00:25]} Kf4 {[%emt 0:00:00]} 51. b5 {[%emt 0:00:29][%cal Bb4b5,Bb5b6,Bb6b7][%mdl 32]} Rb2+ {[%emt 0:00:00]} 52. Kf1 {[%emt 0:01:32]} Ke3 {[%emt 0:00:00]} 53. b6 {[%emt 0:00:14]} Rxh2 {[%emt 0:00:00]} (53... d3 $5 54. Re7+ Kf4 $11) 54. Re7+ {[%emt 0:00:24]} Kd3 {[%emt 0:00:23]} 55. b7 {[%emt 0:00:40]} Rb2 {[%emt 0:00:05]} 56. Kg1 {[%emt 0:00:29]} g5 {[%emt 0:03:05]} 57. Kf1 {[%emt 0:00:06]} g4 {[%emt 0:00:05]} 58. Kg1 $1 {[%emt 0:00:04]} Kd2 {[%emt 0:00:57]} 59. Kg2 {[%emt 0:00:26]} d3 {[%emt 0:00:07]} 60. Kg3 {[%emt 0:00:09]} Rb4 {[%emt 0:00:06]} 61. Rc7 {[%emt 0:00:40]} Kd1 {[%emt 0:00:32]} 62. Rd7 {[%emt 0:00:21]} d2 {[%emt 0:00:05]} 63. Rc7 {[%emt 0:00:16]} Ke2 {[%emt 0:06:09]} 64. Re7+ {[%emt 0:00:05]} Kd3 {[%emt 0:00:06]} 65. Rd7+ {[%emt 0:00:05]} Ke2 {[%emt 0:00:21]} (65... Kc2 $5 66. Rc7+ Kd3 67. Rd7+ Ke4 $11) 66. Re7+ {[%emt 0:00:05]} Kd3 {[%emt 0:00:04]} 67. Rd7+ {[%emt 0:00:06]} Ke2 {[%emt 0:00:05] Weighted Error Value: White=0.04 (flawless) /Black=0.05 (flawless)} (67... Kc2 $5 68. Rc7+ Kd3 69. Rd7+ $11) 1/2-1/2

[Event "3rd VIZAG GM-Open 2022"]
[Site "Visakapatnam"]
[Date "2022.06.17"]
[Round "10.7"]
[White "Nikitenko, Mihail"]
[Black "Baghdasaryan, Vahe"]
[Result "0-1"]
[ECO "B21"]
[WhiteElo "2479"]
[BlackElo "2267"]
[Annotator "TA"]
[PlyCount "70"]
[EventDate "2022.06.13"]
[EventType "swiss"]
[EventCountry "IND"]
[SourceTitle "playchess.com"]
[Source "ChessBase"]
[SourceQuality "1"]
[TimeControl "5400+30"]

{[%evp 10,70,1,6,0,0,0,0,25,10,44,40,52,50,66,35,39,-20,0,-51,-50,-61,-57,-67,-62,-45,-25,-63,-61,-57,-42,-50,-47,-110,-88,-104,-104,-120,-95,-218,-247,-217,-230,-537,-535,-535,-531,-726,-711,-739,-719,-856,-852,-1131,-1116,-1082,-1054,-1898,-1255,-1949,-1702,-1951,-1748]} 1. e4 {[%emt 0:00:05]} c5 {[%emt 0:09:39]} 2. d3 {[%emt 0:00:08]} g6 {[%emt 0:02:27]} 3. f4 {[%emt 0:00:13]} Bg7 {[%emt 0:00:13]} 4. Nf3 {[%emt 0:00:06]} d6 {[%emt 0:00:15]} 5. Be2 {[%emt 0:00:10]} Nc6 {[%emt 0:00:10]} 6. O-O {[%emt 0:00:31]} Nf6 {[%emt 0:02:05] B21: Sicilian: 2 f4 and Morra Gambit.} 7. Qe1 $1 {[%emt 0:00:22]} O-O {[%emt 0:12:03]} 8. Qh4 {[%emt 0:00:15]} Bg4 {[%emt 0:06:18] The position is equal.} 9. Nbd2 {[%emt 0:02:47]} Bxf3 {[%emt 0:06:52]} 10. Nxf3 {[%emt 0:00:10]} Nd4 {[%emt 0:00:04] Prevents f5.} 11. Bd1 {[%emt 0:00:06][%cal Of4f5] [#]} Qb6 $146 {[%emt 0:02:09][%cal Oc5c4]} ({Predecessor:} 11... e6 12. Ng5 h6 13. Nh3 Nd7 14. Qg3 Kh7 15. c3 Nc6 16. f5 Nde5 17. Bc2 exf5 18. exf5 gxf5 19. Rxf5 {1-0 (33) Williams,S (2444)-Guthrie,D (2192) Reading 2017}) 12. Kh1 {[%emt 0:02:43][%cal Of4f5]} c4 {[%emt 0:01:52]} 13. e5 {[%emt 0:02:39]} (13. Qh3 $14) 13... Nf5 $11 {[%emt 0:07:17]} 14. exf6 {[%emt 0:20:09]} Nxh4 $15 {[%emt 0:05:09]} 15. fxg7 {[%emt 0:00:05] [#]} Rfc8 {[%emt 0:00:19]} 16. Nxh4 {[%emt 0:00:08]} cxd3 {[%emt 0:41:38]} ({Don't play} 16... Kxg7 $6 17. dxc4 Rxc4 18. Nf3 $11) 17. cxd3 {[%emt 0:00:42]} Qd4 {[%emt 0:00:10]} 18. Bb3 {[%emt 0:01:16]} Qxd3 $40 {[%emt 0:01:07][%cal Rd3f1][%mdl 128] Black has some attack.} 19. Rd1 {[%emt 0:00:05]} Qb5 {[%emt 0:03:37]} 20. Be3 {[%emt 0:04:14][%cal Of4f5]} a5 {[%emt 0:00:21][%cal Ba7a5,Ba5a4,Ba4a3,Ba3b2][%mdl 32] [#] aiming for ...e6.} 21. f5 {[%emt 0:01:34] Inhibits e6.} (21. Nf3 $1 $15) 21... a4 $17 {[%emt 0:02:17]} 22. Bd5 {[%emt 0:00:03]} ({But not} 22. Rd5 $2 Qe2 23. Bd1 Qxe3 $19) 22... Kxg7 {[%emt 0:00:19]} 23. Bd4+ {[%emt 0:01:12]} Kg8 {[%emt 0:00:24]} 24. Bc3 {[%emt 0:00:42] White does not recover from this.} (24. Be4 $17) 24... Rc5 $19 {[%emt 0:00:40]} 25. Be4 {[%emt 0:00:00]} a3 {[%emt 0:03:14]} ({Don't go for} 25... gxf5 $2 26. Bd3 Qd7 27. Bd4) 26. Bd4 {[%emt 0:01:00]} (26. Bd3 {is a better chance.} Qa4 27. fxg6 hxg6 28. Nf3) 26... axb2 {[%emt 0:00:10] Black is clearly winning.} 27. Rab1 {[%emt 0:00:00]} Qa4 {[%emt 0:03:49] And now ...Rc1 would win.} 28. Nf3 {[%emt 0:00:00]} gxf5 {[%emt 0:05:09]} 29. Bd3 {[%emt 0:00:00]} Rc1 {[%emt 0:06:27]} 30. Rg1 {[%emt 0:00:00]} Rxg1+ {[%emt 0:00:34]} 31. Bxg1 {[%emt 0:00:00]} Qxa2 {[%emt 0:00:28]} 32. Bxf5 {[%emt 0:00:00]} e6 {[%emt 0:00:45]} 33. Bd3 {[%emt 0:00:00]} Rc8 {[%emt 0:00:31]} 34. Nd2 {[%emt 0:00:00]} Rc1 {[%emt 0:01:12]} 35. h3 {[%emt 0:00:00]} Qd5 {[%emt 0:00:43] Weighted Error Value: White=0.74/Black=0.28 (precise)} 0-1